bitfinex-derivatives/quotes_BTCF0:USTF0_20250630
["timestamp","ask_amount","ask_price","bid_price","bid_amount"]
[1751293507160,0.4383103,107380.0,107370.0,1.24057792]
[1751293507657,0.4383103,107380.0,107370.0,1.60129792]
[1751293508159,0.99774803,107380.0,107370.0,0.14701379]
[1751293508362,0.1862275,107370.0,107360.0,0.03710353]
[1751293508559,0.1862449,107360.0,107350.0,0.56380098]
[1751293508753,0.1862449,107360.0,107350.0,1.10352]
[1751293508952,0.1862449,107360.0,107350.0,0.74272]
[1751293508953,0.92021863,107360.0,107350.0,0.74272]
[1751293509150,0.92021863,107360.0,107350.0,0.77056867]
[1751293509357,0.5470449,107360.0,107350.0,0.77056867]
[1751293509656,1.02021863,107360.0,107350.0,0.77056867]
[1751293509960,0.92021863,107360.0,107350.0,0.77060867]
[1751293510560,0.92021863,107360.0,107350.0,0.02784867]
[1751293510762,0.5470449,107360.0,107350.0,0.76984867]
[1751293510959,0.5470449,107360.0,107350.0,0.02784867]
[1751293511158,0.1862449,107360.0,107350.0,1.2890618]
[1751293511456,0.1862449,107360.0,107350.0,1.34486278]
[1751293511662,0.4330449,107360.0,107350.0,1.34486278]
[1751293511862,0.4350449,107360.0,107350.0,1.34486278]
[1751293512053,0.4350449,107360.0,107350.0,1.2890618]
[1751293512254,0.4350449,107360.0,107350.0,1.34486278]
[1751293512455,0.4350449,107360.0,107350.0,1.15860098]
[1751293512665,0.80821863,107360.0,107350.0,1.15860098]
[1751293512961,0.80821863,107360.0,107350.0,1.34486278]
[1751293513150,0.80821863,107360.0,107350.0,1.15860098]
[1751293513352,0.80821863,107360.0,107350.0,1.34486278]
[1751293514256,0.4350449,107360.0,107350.0,1.15860098]
[1751293514463,0.80821863,107360.0,107350.0,1.15860098]
[1751293514862,0.4350449,107360.0,107350.0,1.15860098]
[1751293515563,0.4350449,107360.0,107350.0,0.79780098]
[1751293515966,0.80821863,107360.0,107350.0,1.15860098]
[1751293516168,0.80821863,107360.0,107350.0,0.41660098]
[1751293516368,0.80821863,107360.0,107350.0,1.15860098]
[1751293518374,0.9879949,107360.0,107350.0,1.15860098]
[1751293518974,1.36116863,107360.0,107350.0,1.15860098]
[1751293520375,1.36116863,107360.0,107350.0,1.1028]
[1751293520675,0.1862792,107340.0,107330.0,1.20841282]
[1751293520978,0.1862792,107340.0,107330.0,2.22210362]
[1751293521166,0.2718792,107340.0,107330.0,1.48010362]
[1751293521369,0.3554792,107340.0,107330.0,2.22210362]
[1751293521569,0.3554792,107340.0,107330.0,1.48010362]
[1751293521780,0.4377792,107340.0,107330.0,2.22210362]
[1751293522076,0.4377792,107340.0,107330.0,2.22310362]
[1751293522272,0.3554792,107340.0,107330.0,1.48110362]
[1751293522576,0.3554792,107340.0,107330.0,2.22310932]
[1751293525174,0.21419406,107350.0,107340.0,0.1862791]
[1751293525372,0.197496,107350.0,107340.0,1.00045283]
[1751293525577,0.197496,107350.0,107340.0,1.18315283]
[1751293525780,0.197496,107350.0,107340.0,1.25740414]
[1751293526577,0.55295,107360.0,107350.0,0.1862618]
[1751293526784,0.55295,107360.0,107350.0,1.76665553]
[1751293527281,0.7391945,107360.0,107350.0,1.76665553]
[1751293529180,0.7411945,107360.0,107350.0,1.76665553]
[1751293529380,0.55495,107360.0,107350.0,1.76665553]
[1751293529784,0.7411945,107360.0,107350.0,1.3934818]
[1751293530281,0.55495,107360.0,107350.0,1.76665553]
[1751293531085,0.55495,107360.0,107350.0,1.84090684]
[1751293531685,0.55495,107360.0,107350.0,1.91660195]
[1751293532078,0.55495,107360.0,107350.0,1.84090684]
[1751293534482,0.55495,107360.0,107350.0,2.13690684]
[1751293536485,0.55495,107360.0,107350.0,1.76373311]
[1751293536688,0.55495,107360.0,107350.0,2.13690684]
[1751293536992,0.55495,107360.0,107350.0,2.21028568]
[1751293538288,0.7411944,107360.0,107350.0,1.24159195]
[1751293538484,0.7411944,107360.0,107350.0,1.07089195]
[1751293538691,1.28736813,107360.0,107350.0,1.6649018]
[1751293538879,1.36866813,107360.0,107350.0,1.0697018]
[1751293539084,0.9954944,107360.0,107350.0,1.6649018]
[1751293539691,0.9141944,107360.0,107350.0,1.3689018]
[1751293540092,0.9141944,107360.0,107350.0,0.7737018]
[1751293540293,0.9949944,107360.0,107350.0,0.5470618]
[1751293540493,0.9949944,107360.0,107350.0,1.2884618]
[1751293540691,1.36816813,107360.0,107350.0,0.50704]
[1751293540890,1.36816813,107360.0,107350.0,1.1022]
[1751293541298,1.36816813,107360.0,107350.0,0.7414]
[1751293544591,1.18192373,107360.0,107340.0,0.3608]
[1751293544799,0.30316606,107340.0,107330.0,0.07425131]
[1751293544988,0.30316606,107340.0,107300.0,0.16359806]
[1751293544989,0.1863312,107310.0,107300.0,0.16359806]
[1751293545190,0.5471312,107310.0,107300.0,0.16627475]
[1751293545389,1.17190493,107310.0,107300.0,0.16627475]
[1751293545592,0.7987312,107310.0,107300.0,0.16627475]
[1751293545797,1.17190493,107310.0,107300.0,0.16627475]
[1751293546492,0.4379312,107310.0,107300.0,0.16627475]
[1751293546686,0.81110493,107310.0,107300.0,0.01408766]
[1751293546889,0.4379312,107310.0,107300.0,0.01408766]
[1751293547196,1.17190493,107310.0,107300.0,0.01408766]
[1751293547794,1.24626135,107310.0,107300.0,0.01408766]
[1751293548091,1.24626135,107310.0,107300.0,0.02008766]
[1751293553499,1.34626135,107310.0,107300.0,0.02008766]
[1751293554503,1.84626135,107310.0,107300.0,0.006]
[1751293555102,2.03264535,107310.0,107300.0,0.006]
[1751293559699,1.74626135,107310.0,107300.0,0.006]
[1751293560204,1.84626135,107310.0,107300.0,0.006]
[1751293560800,1.84626135,107310.0,107300.0,0.01993648]
[1751293561106,1.84626135,107310.0,107300.0,0.01994473]
[1751293561902,1.84626135,107310.0,107300.0,0.006]
[1751293562907,1.86954882,107310.0,107300.0,0.006]
[1751293563200,0.1863486,107300.0,107290.0,0.0005591]
[1751293563403,0.20315778,107290.0,107280.0,0.15264]
[1751293563708,1.19323151,107290.0,107280.0,0.18126588]
[1751293564105,1.67323151,107290.0,107280.0,0.18126588]
[1751293564999,1.67323151,107290.0,107280.0,0.19126588]
[1751293566008,2.17323151,107290.0,107280.0,0.19126588]
[1751293566213,2.17323151,107290.0,107280.0,0.17334704]
[1751293567314,2.27323151,107290.0,107280.0,0.17334704]
[1751293567513,2.27323151,107290.0,107280.0,0.02070704]
[1751293567701,2.17323151,107290.0,107280.0,0.02070704]
[1751293568214,1.93323151,107290.0,107280.0,0.02070704]
[1751293568512,1.48533151,107290.0,107280.0,0.38150704]
[1751293568700,1.73533151,107290.0,107280.0,0.47937646]
[1751293568902,0.87533151,107290.0,107280.0,0.56517646]
[1751293569102,0.89866185,107290.0,107280.0,0.75155976]
[1751293569303,1.26867584,107290.0,107280.0,0.75155976]
[1751293569508,0.89867584,107290.0,107280.0,0.75155976]
[1751293570008,0.50215778,107290.0,107280.0,0.75155976]
[1751293570209,0.14679188,107290.0,107280.0,1.49977272]
[1751293570912,0.14679188,107290.0,107280.0,1.48977272]
[1751293571114,0.14679188,107290.0,107280.0,1.49477272]
[1751293571314,0.33315778,107290.0,107280.0,1.49477272]
[1751293571515,0.14679188,107290.0,107280.0,1.86794645]
[1751293571709,0.33315778,107290.0,107280.0,1.49477272]
[1751293573117,0.33315778,107290.0,107280.0,1.4802033]
[1751293573917,0.33315778,107290.0,107280.0,2.03979303]
[1751293573918,0.14679188,107290.0,107280.0,2.03979303]
[1751293574115,0.33315778,107290.0,107280.0,2.03979303]
[1751293574814,0.3163659,107290.0,107280.0,2.03979303]
[1751293575014,0.3163659,107290.0,107280.0,1.6666193]
[1751293575404,0.3163659,107290.0,107280.0,1.6665193]
[1751293575604,0.13,107290.0,107280.0,1.85327703]
[1751293575804,0.3163659,107290.0,107280.0,2.03969303]
[1751293576116,0.3163659,107290.0,107280.0,2.03959303]
[1751293576316,0.13,107290.0,107280.0,2.03959303]
[1751293576518,0.3163659,107290.0,107280.0,2.03959303]
[1751293576820,0.3838504,107300.0,107290.0,0.1863659]
[1751293577118,0.327496,107300.0,107290.0,1.10757192]
[1751293577712,0.327496,107300.0,107290.0,1.10747192]
[1751293578212,0.327496,107300.0,107290.0,1.11047192]
[1751293578516,0.327496,107300.0,107290.0,1.29687192]
[1751293579320,0.327496,107300.0,107290.0,1.38497192]
[1751293579616,0.31090312,107300.0,107290.0,1.19857192]
[1751293579823,0.31090312,107300.0,107290.0,1.45887875]
[1751293580219,0.31090312,107300.0,107290.0,1.45877875]
[1751293580419,0.31090312,107300.0,107290.0,1.47768605]
[1751293580721,0.31090312,107300.0,107290.0,1.72768605]
[1751293581124,0.31090312,107300.0,107290.0,1.82768605]
[1751293581510,0.28516242,107300.0,107290.0,1.82768605]
[1751293583626,0.20928552,107300.0,107290.0,1.82768605]
[1751293583924,0.11962072,107300.0,107290.0,1.82768605]
[1751293584127,0.1873112,107330.0,107320.0,0.1863138]
[1751293584426,0.12062709,107330.0,107320.0,1.70221403]
[1751293584629,0.12062709,107330.0,107320.0,1.95231403]
[1751293584825,0.12062709,107330.0,107320.0,2.35315743]
[1751293585817,0.12062709,107330.0,107320.0,2.35305743]
[1751293587019,0.30692349,107330.0,107320.0,2.38930976]
[1751293587424,0.30692349,107330.0,107320.0,1.63298976]
[1751293587628,0.30692349,107330.0,107320.0,1.17441603]
[1751293587824,0.48112349,107330.0,107320.0,1.17441603]
[1751293588023,0.48112349,107330.0,107320.0,1.93101603]
[1751293588214,0.12062709,107330.0,107320.0,2.30418976]
[1751293588527,0.30692349,107330.0,107320.0,2.24837941]
[1751293589222,0.30692349,107330.0,107320.0,2.30408976]
[1751293590127,0.30692349,107330.0,107320.0,2.26699743]
[1751293590427,0.30692349,107330.0,107320.0,2.30405302]
[1751293591029,0.39132349,107330.0,107320.0,2.30405302]
[1751293591327,0.39132349,107330.0,107320.0,1.69957302]
[1751293591530,0.39132349,107330.0,107320.0,2.30337302]
[1751293591719,0.39132349,107330.0,107320.0,2.21957302]
[1751293591916,0.47392349,107330.0,107320.0,1.84639929]
[1751293592430,0.28762709,107330.0,107320.0,2.21957302]
[1751293592632,0.20502709,107330.0,107320.0,2.21957302]
[1751293592932,0.39132349,107330.0,107320.0,2.30907302]
[1751293594335,0.94427349,107330.0,107320.0,2.30907302]
[1751293595732,0.94427349,107330.0,107320.0,1.55315302]
[1751293595937,0.94427349,107330.0,107320.0,2.30783302]
[1751293597236,0.94427349,107330.0,107320.0,2.27077743]
[1751293597539,0.94427349,107330.0,107320.0,1.09678728]
[1751293597540,1.31744722,107330.0,107320.0,1.09678728]
[1751293597740,1.03417349,107330.0,107320.0,1.69858728]
[1751293599032,0.84787709,107330.0,107320.0,2.01688002]
[1751293599232,0.67357709,107330.0,107320.0,2.48028311]
[1751293599536,0.67357709,107330.0,107320.0,2.54749974]
[1751293599837,0.67357709,107330.0,107320.0,2.316107]
[1751293600136,0.67357709,107330.0,107320.0,2.92075174]
[1751293600336,0.47225119,107330.0,107320.0,2.92075174]
[1751293600533,0.24339774,107330.0,107320.0,2.84647128]
[1751293600834,0.1691,107360.0,107350.0,0.20179286]
[1751293601132,0.3091,107360.0,107350.0,2.87156514]
[1751293601334,0.2253,107360.0,107350.0,2.9700788]
[1751293601535,0.2253,107360.0,107350.0,3.02569811]
[1751293601732,0.2253,107360.0,107350.0,3.04296899]
[1751293602430,0.3137,107360.0,107350.0,2.98734968]
[1751293602940,0.3137,107360.0,107350.0,3.0615116]
[1751293603132,0.3177,107360.0,107350.0,3.0615116]
[1751293603331,0.3177,107360.0,107350.0,2.98734968]
[1751293603934,0.3177,107360.0,107350.0,3.07614968]
[1751293604533,0.5039445,107360.0,107350.0,2.14396968]
[1751293604738,0.5039445,107360.0,107350.0,2.56171053]
[1751293604739,0.5924445,107360.0,107350.0,2.56171053]
[1751293607036,0.5924445,107360.0,107350.0,2.55787053]
[1751293607535,0.5924445,107360.0,107350.0,1.80839053]
[1751293607738,0.5924445,107360.0,107350.0,2.55775053]
[1751293609939,0.5924445,107360.0,107350.0,2.55687053]
[1751293610136,0.5924445,107360.0,107350.0,1.80839053]
[1751293610332,0.5924445,107360.0,107350.0,2.55675053]
[1751293610537,0.5924445,107360.0,107350.0,2.55655053]
[1751293611337,0.5924445,107360.0,107350.0,2.57508178]
[1751293611841,0.5924445,107360.0,107350.0,2.61217691]
[1751293612641,0.5924445,107360.0,107350.0,2.01305691]
[1751293612836,0.5924445,107360.0,107350.0,2.61157691]
[1751293613238,0.5924445,107360.0,107350.0,2.57448178]
[1751293613730,0.3177,107360.0,107350.0,2.94712424]
[1751293613931,0.5039445,107360.0,107350.0,3.03042424]
[1751293618344,0.5039445,107360.0,107350.0,2.65778108]
[1751293618546,0.5886445,107360.0,107350.0,2.57308108]
[1751293619448,0.5886445,107360.0,107350.0,1.82692108]
[1751293619644,1.24128766,107360.0,107350.0,1.45681471]
[1751293619844,1.24128766,107360.0,107350.0,1.30777504]
[1751293620144,1.686573,107360.0,107350.0,1.28002702]
[1751293620346,0.1862618,107350.0,107340.0,0.05559526]
[1751293620547,1.12560496,107350.0,107340.0,0.05559526]
[1751293620746,1.12560496,107350.0,107340.0,0.80175526]
[1751293621146,1.32310096,107350.0,107340.0,0.80175526]
[1751293621347,1.68390096,107350.0,107340.0,0.05559526]
[1751293621556,2.22021296,107350.0,107340.0,0.80175526]
[1751293621849,2.22221296,107350.0,107340.0,0.80175526]
[1751293622347,2.22221296,107350.0,107340.0,0.20463526]
[1751293622547,2.22221296,107350.0,107340.0,0.74616]
[1751293622742,2.12221296,107350.0,107340.0,0.74616]
[1751293623250,2.22221296,107350.0,107340.0,0.80175526]
[1751293623450,2.22221296,107350.0,107340.0,0.74616]
[1751293623659,2.22221296,107350.0,107340.0,0.80175526]
[1751293624251,1.97221296,107350.0,107340.0,0.80175526]
[1751293624451,1.97221296,107350.0,107340.0,0.74616]
[1751293624650,1.97221296,107350.0,107340.0,0.80175526]
[1751293624848,0.9287698,107350.0,107340.0,0.80175526]
[1751293625052,1.61221296,107350.0,107340.0,0.80175526]
[1751293625256,2.05221296,107350.0,107340.0,0.20463526]
[1751293625448,1.59141296,107350.0,107340.0,0.20463526]
[1751293625758,1.95221296,107350.0,107340.0,0.20463526]
[1751293625950,1.61221296,107350.0,107340.0,0.65275526]
[1751293626251,1.95590096,107350.0,107340.0,0.65275526]
[1751293626458,1.92590096,107350.0,107340.0,0.65275526]
[1751293627353,2.29590096,107350.0,107340.0,0.65275526]
[1751293628049,1.79590096,107350.0,107340.0,0.05559526]
[1751293630054,0.1862777,107340.0,107330.0,0.07416192]
[1751293630258,1.8063569,107340.0,107330.0,0.74628]
[1751293630455,2.0038529,107340.0,107330.0,0.14908]
[1751293630758,2.1901889,107340.0,107330.0,0.14908]
[1751293630961,0.1863124,107320.0,107310.0,0.64566767]
[1751293631256,0.3063124,107320.0,107310.0,1.39194767]
[1751293631458,0.3917124,107320.0,107310.0,1.47714767]
[1751293632258,0.4816124,107320.0,107310.0,1.40298575]
[1751293632453,0.3917124,107320.0,107310.0,1.40298575]
[1751293633254,0.3917124,107320.0,107310.0,1.39371961]
[1751293633460,0.3917124,107320.0,107310.0,1.39671961]
[1751293634157,0.3917124,107320.0,107310.0,1.48037458]
[1751293634455,0.3063124,107320.0,107310.0,1.48038434]
[1751293634654,0.3063124,107320.0,107310.0,1.57098434]
[1751293636062,0.3063124,107320.0,107310.0,1.9436275]
[1751293636258,0.12,107320.0,107310.0,1.9436275]
[1751293637968,0.49346754,107340.0,107330.0,0.55893816]
[1751293638174,0.61346754,107340.0,107330.0,1.66421816]
[1751293638464,0.61346754,107340.0,107330.0,1.467475]
[1751293639158,0.61346754,107340.0,107330.0,1.828275]
[1751293641678,0.61346754,107340.0,107330.0,1.467475]
[1751293642586,0.70146754,107340.0,107330.0,1.467435]
[1751293643382,0.70146754,107340.0,107330.0,1.106635]
[1751293643674,0.70146754,107340.0,107330.0,1.467435]
[1751293644070,0.70146754,107340.0,107330.0,1.106635]
[1751293644477,0.70146754,107340.0,107330.0,1.28114]
[1751293645474,0.50397154,107340.0,107330.0,1.28114]
[1751293645680,0.50397154,107340.0,107330.0,0.92034]
[1751293645880,0.82225753,107340.0,107330.0,0.83224]
[1751293646077,0.186295,107330.0,107320.0,0.7304991]
[1751293646380,0.72578099,107330.0,107320.0,1.18806]
[1751293646681,0.92327699,107330.0,107320.0,1.18806]
[1751293647279,0.92327699,107330.0,107320.0,1.3753723]
[1751293648375,0.604991,107330.0,107320.0,1.44965262]
[1751293648681,0.604991,107330.0,107320.0,1.3753723]
[1751293648981,0.604991,107330.0,107320.0,1.69365829]
[1751293649176,0.513791,107330.0,107320.0,1.76793861]
[1751293649377,0.513791,107330.0,107320.0,1.85863861]
[1751293649774,0.513791,107330.0,107320.0,1.54035262]
[1751293654982,0.513791,107330.0,107320.0,1.91334809]
[1751293655180,0.513791,107330.0,107320.0,1.83906777]
[1751293655376,0.513791,107330.0,107320.0,1.91351245]
[1751293655577,0.513791,107330.0,107320.0,1.83906777]
[1751293655784,0.513791,107330.0,107320.0,1.91351216]
[1751293656179,0.513791,107330.0,107320.0,1.83906777]
[1751293657085,0.327496,107330.0,107320.0,1.83906777]
[1751293657384,0.327496,107330.0,107320.0,1.9318819]
[1751293657987,0.327496,107330.0,107320.0,1.94737052]
[1751293658280,0.2794103,107350.0,107340.0,0.1862775]
[1751293658485,0.3628419,107350.0,107340.0,2.08091818]
[1751293658681,0.3628419,107350.0,107340.0,2.28093325]
[1751293659184,0.3162748,107350.0,107340.0,2.28093325]
[1751293659386,0.3162748,107350.0,107340.0,2.29625594]
[1751293659582,0.3162601,107350.0,107340.0,1.08816047]
[1751293659783,0.78325557,107350.0,107340.0,0.81532391]
[1751293659983,0.95765557,107350.0,107340.0,0.81532391]
[1751293660782,0.5846601,107350.0,107340.0,0.85255508]
[1751293661086,0.5846601,107350.0,107340.0,0.46919508]
[1751293661284,0.5846601,107350.0,107340.0,1.21331508]
[1751293661588,0.5846601,107350.0,107340.0,0.79996122]
[1751293661789,0.5846601,107350.0,107340.0,0.74412]
[1751293662385,0.1862774,107340.0,107330.0,0.08974905]
[1751293662580,0.87077287,107340.0,107330.0,0.59782905]
[1751293662774,0.4977774,107340.0,107330.0,1.19462905]
[1751293664078,0.5177774,107340.0,107330.0,0.08974905]
[1751293664279,0.5177774,107340.0,107330.0,0.83378905]
[1751293664574,0.89077287,107340.0,107330.0,0.83378905]
[1751293665179,0.89077287,107340.0,107330.0,0.8151893]
[1751293665383,0.5177774,107340.0,107330.0,0.8151893]
[1751293665686,0.89077287,107340.0,107330.0,0.8151893]
[1751293666586,0.4977774,107340.0,107330.0,1.30642357]
[1751293666783,0.4977774,107340.0,107330.0,1.46928385]
[1751293666984,0.4977774,107340.0,107330.0,0.92218905]
[1751293667286,0.4977774,107340.0,107330.0,0.83378905]
[1751293667585,0.4977774,107340.0,107330.0,1.02008385]
[1751293667987,0.4977774,107340.0,107330.0,1.38088385]
[1751293669487,0.4977774,107340.0,107330.0,0.83378905]
[1751293669786,0.4977774,107340.0,107330.0,1.19458905]
[1751293670087,0.87077287,107340.0,107330.0,0.75932877]
[1751293671090,0.1862948,107330.0,107320.0,0.43526028]
[1751293671290,1.14588627,107330.0,107320.0,0.58226028]
[1751293671492,1.17588627,107330.0,107320.0,1.17886028]
[1751293672185,1.1528908,107330.0,107320.0,0.22146028]
[1751293672487,1.48588627,107330.0,107320.0,0.81806028]
[1751293672884,1.48588627,107330.0,107320.0,0.81906028]
[1751293673080,1.84668627,107330.0,107320.0,0.81906028]
[1751293674085,1.94668627,107330.0,107320.0,0.81906028]
[1751293674285,1.94668627,107330.0,107320.0,0.7446]
[1751293674793,1.94668627,107330.0,107320.0,0.80045523]
[1751293675091,1.84668627,107330.0,107320.0,0.80045523]
[1751293675292,1.48588627,107330.0,107320.0,0.80045523]
[1751293675685,1.30588627,107330.0,107320.0,0.80045523]
[1751293678498,1.76668627,107330.0,107320.0,0.20385523]
[1751293678899,1.74256578,107330.0,107320.0,0.80033523]
[1751293679197,1.74256578,107330.0,107320.0,0.83754935]
[1751293679398,1.74256578,107330.0,107320.0,0.80033523]
[1751293679594,1.38176578,107330.0,107320.0,1.16113523]
[1751293679796,1.47713446,107330.0,107320.0,1.16113523]
[1751293680190,1.83793446,107330.0,107320.0,0.80033523]
[1751293680390,1.57713446,107330.0,107320.0,0.80033523]
[1751293680592,1.83793446,107330.0,107320.0,0.80033523]
[1751293680900,1.83793446,107330.0,107320.0,0.83754621]
[1751293681399,1.57713446,107330.0,107320.0,0.78169098]
[1751293681587,1.57713446,107330.0,107320.0,0.18525098]
[1751293681790,1.98456687,107330.0,107310.0,0.81790028]
[1751293681995,0.77923915,107320.0,107310.0,0.81790028]
[1751293682196,1.29258897,107320.0,107310.0,0.81790028]
[1751293682396,1.29258897,107320.0,107310.0,0.74344]
[1751293683101,1.29258897,107320.0,107310.0,0.74444]
[1751293683397,1.32258897,107320.0,107310.0,1.10524]
[1751293683599,0.97258897,107320.0,107310.0,1.18170028]
[1751293684589,0.97258897,107320.0,107310.0,1.27050028]
[1751293685502,0.97258897,107320.0,107310.0,0.90970028]
[1751293685702,0.97258897,107320.0,107310.0,0.83524]
[1751293686194,1.32258897,107320.0,107310.0,0.0918]
[1751293686397,2.00175312,107320.0,107310.0,0.80207614]
[1751293686990,2.50175312,107320.0,107310.0,0.80207614]
[1751293688297,2.18338897,107320.0,107310.0,0.80207614]
[1751293688497,2.50175312,107320.0,107310.0,0.20583614]
[1751293691200,2.50175312,107320.0,107310.0,4e-08]
[1751293691401,2.50175312,107320.0,107300.0,1.01563176]
[1751293691402,0.1863295,107310.0,107300.0,0.83864]
[1751293691602,0.1863468,107300.0,107290.0,0.31283229]
[1751293691807,1.41751095,107300.0,107290.0,0.31283229]
[1751293692106,1.51281095,107300.0,107290.0,0.31283229]
[1751293692708,1.51281095,107300.0,107290.0,0.31983229]
[1751293692902,1.51281095,107300.0,107290.0,0.24537201]
[1751293694212,1.52181063,107300.0,107290.0,0.24537201]
[1751293694508,1.51281095,107300.0,107290.0,0.24537201]
[1751293697011,1.51281095,107300.0,107290.0,0.09833201]
[1751293697510,0.186399,107270.0,107260.0,0.22883255]
[1751293697721,1.14556315,107270.0,107260.0,0.24317227]
[1751293698005,0.715999,107270.0,107260.0,0.24317227]
[1751293698209,0.426399,107270.0,107260.0,0.60397227]
[1751293698409,0.316399,107270.0,107260.0,1.30171227]
[1751293698712,0.316399,107270.0,107260.0,1.62007642]
[1751293698909,0.316399,107270.0,107260.0,1.48812857]
[1751293699210,0.316399,107270.0,107260.0,1.30215227]
[1751293699407,0.316399,107270.0,107260.0,1.48856857]
[1751293699607,0.316399,107270.0,107260.0,1.30215227]
[1751293700211,0.63476315,107270.0,107260.0,0.53803227]
[1751293700418,0.63476315,107270.0,107260.0,1.30191227]
[1751293700610,0.63476315,107270.0,107260.0,1.30179227]
[1751293701605,0.63676315,107270.0,107260.0,1.30279227]
[1751293701906,0.69187054,107270.0,107260.0,1.30279227]
[1751293703312,0.318399,107270.0,107260.0,1.3176171]
[1751293703606,0.318399,107270.0,107260.0,1.5040334]
[1751293703909,0.318399,107270.0,107260.0,1.3176171]
[1751293704311,0.318399,107270.0,107260.0,1.5040334]
[1751293705611,0.318399,107270.0,107260.0,1.5030334]
[1751293708415,0.318399,107270.0,107260.0,1.4145734]
[1751293708714,0.318399,107270.0,107260.0,1.5032734]
[1751293709518,0.318399,107270.0,107260.0,1.87674494]
[1751293712218,0.318399,107270.0,107260.0,1.11566494]
[1751293712411,0.318399,107270.0,107260.0,1.5018334]
[1751293712918,0.132,107270.0,107260.0,1.5018334]
[1751293713215,0.0465942,107290.0,107280.0,0.1863816]
[1751293713216,0.2795638,107290.0,107280.0,0.1863816]
[1751293713424,0.3995638,107290.0,107280.0,1.5138216]
[1751293713718,0.3995638,107290.0,107280.0,1.6951216]
[1751293713930,0.352969,107290.0,107280.0,1.6951216]
[1751293714122,0.352969,107290.0,107280.0,2.06859314]
[1751293714820,0.354969,107290.0,107280.0,1.6951216]
[1751293715020,0.354969,107290.0,107280.0,2.06859314]
[1751293715818,0.354969,107290.0,107280.0,1.6951216]
[1751293716322,0.354969,107290.0,107280.0,2.06859314]
[1751293717824,0.354969,107290.0,107280.0,1.8484816]
[1751293718424,0.354969,107290.0,107280.0,1.86365313]
[1751293718621,0.3083752,107290.0,107280.0,2.23712467]
[1751293718924,0.3083642,107290.0,107280.0,1.86365313]
[1751293719223,0.3083642,107290.0,107280.0,2.23712467]
[1751293720426,0.3083642,107290.0,107280.0,2.61565313]
[1751293720624,0.4007642,107290.0,107280.0,2.61565313]
[1751293721424,0.4007642,107290.0,107280.0,2.61537313]
[1751293722022,0.3083642,107290.0,107280.0,2.61537313]
[1751293722323,0.3083642,107290.0,107280.0,3.08384467]
[1751293723821,0.3083642,107290.0,107280.0,3.02883657]
[1751293726828,0.122,107290.0,107280.0,3.02883657]
[1751293727330,0.12,107290.0,107280.0,3.02883657]
[1751293727531,0.12,107290.0,107280.0,3.02983657]
[1751293728232,0.12,107290.0,107280.0,3.12983657]
[1751293728925,0.0949,107310.0,107300.0,0.1863469]
[1751293729127,0.07,107310.0,107300.0,1.98113034]
[1751293729334,0.07,107310.0,107300.0,2.16333034]
[1751293729530,0.2563295,107310.0,107300.0,2.16333034]
[1751293730130,0.073,107310.0,107300.0,2.16333034]
[1751293730323,0.2593295,107310.0,107300.0,2.16333034]
[1751293731736,0.2593295,107310.0,107300.0,1.8448669]
[1751293731933,0.2593295,107310.0,107300.0,2.17789444]
[1751293733232,0.2593295,107310.0,107300.0,2.25332902]
[1751293734241,0.2593295,107310.0,107300.0,2.26246758]
[1751293734734,0.073,107310.0,107300.0,2.26246758]
[1751293735241,0.2851948,107330.0,107320.0,0.1863121]
[1751293735443,0.11062709,107330.0,107320.0,2.84933827]
[1751293735649,0.29692189,107330.0,107320.0,3.03663827]
[1751293736148,0.11062709,107330.0,107320.0,3.03663633]
[1751293736337,0.29692189,107330.0,107320.0,3.03663633]
[1751293736740,0.11062709,107330.0,107320.0,3.03663633]
[1751293737346,0.11562709,107330.0,107320.0,3.03763633]
[1751293738046,0.11562709,107330.0,107320.0,3.09206219]
[1751293738345,0.30192189,107330.0,107320.0,3.09206219]
[1751293738647,0.11562709,107330.0,107320.0,3.09206219]
[1751293739948,0.463504,107350.0,107340.0,0.1862774]
[1751293740150,0.5688711,107350.0,107340.0,2.06521869]
[1751293740445,0.1,107350.0,107340.0,2.15511869]
[1751293740749,0.28626,107350.0,107340.0,2.24571869]
[1751293741044,0.28626,107350.0,107340.0,1.49135869]
[1751293741253,0.37596,107350.0,107340.0,2.24655869]
[1751293743047,0.38196,107350.0,107340.0,2.24755869]
[1751293743449,0.1957,107350.0,107340.0,2.24755869]
[1751293743748,0.106,107350.0,107340.0,2.24755869]
[1751293744649,0.098,107360.0,107350.0,0.18626]
[1751293744650,0.001,107360.0,107350.0,0.18626]
[1751293744855,0.2872427,107360.0,107350.0,1.21591146]
[1751293745349,0.2872427,107360.0,107350.0,1.21590695]
[1751293745749,0.2872427,107360.0,107350.0,1.97082695]
[1751293746050,0.101,107360.0,107350.0,1.97082695]
[1751293746250,0.106,107360.0,107350.0,1.97082695]
[1751293748051,0.106,107360.0,107350.0,1.97082538]
[1751293748957,0.106,107360.0,107350.0,2.07082538]
[1751293749853,0.106,107360.0,107350.0,2.36682538]
[1751293750249,0.2922427,107360.0,107350.0,2.35046538]
[1751293750454,0.3874427,107360.0,107350.0,1.51190538]
[1751293750650,0.3874427,107360.0,107350.0,0.85761608]
[1751293750851,0.946732,107360.0,107350.0,0.67135608]
[1751293751154,1.03375003,107360.0,107350.0,0.16535608]
[1751293751453,1.03375003,107360.0,107350.0,1.13127608]
[1751293751454,1.34375003,107360.0,107350.0,1.13127608]
[1751293752156,1.34375003,107360.0,107350.0,0.77047608]
[1751293752455,1.34375003,107360.0,107350.0,1.13127608]
[1751293752657,1.07375003,107360.0,107350.0,1.13127608]
[1751293752851,0.70086073,107360.0,107350.0,1.31753608]
[1751293753350,0.59086073,107360.0,107350.0,1.69042538]
[1751293753557,0.59086073,107360.0,107350.0,1.78632538]
[1751293754058,0.59086073,107360.0,107350.0,1.41343608]
[1751293755257,0.59086073,107360.0,107350.0,1.78632538]
[1751293755449,0.59086073,107360.0,107350.0,1.78632716]
[1751293756060,0.59086073,107360.0,107350.0,0.35161786]
[1751293756061,0.96375003,107360.0,107350.0,0.35161786]
[1751293756358,0.96375003,107360.0,107350.0,0.56161786]
[1751293756546,0.96375003,107360.0,107350.0,1.31785786]
[1751293756949,0.59086073,107360.0,107350.0,1.31785786]
[1751293757956,0.59086073,107360.0,107350.0,1.31833786]
[1751293758156,0.59086073,107360.0,107350.0,0.56161786]
[1751293758356,0.59086073,107360.0,107350.0,1.31917786]
[1751293758657,0.59086073,107360.0,107350.0,1.31905786]
[1751293759458,0.59086073,107360.0,107350.0,0.56161786]
[1751293759650,0.59086073,107360.0,107350.0,1.31901786]
[1751293759851,0.59086073,107360.0,107350.0,1.31865786]
[1751293761962,0.59086073,107360.0,107350.0,1.41635786]
[1751293762260,0.40446073,107360.0,107350.0,1.7746893]
[1751293763962,0.40446073,107360.0,107350.0,1.4018]
[1751293764755,0.21821803,107360.0,107350.0,1.4018]
[1751293764962,0.21821803,107360.0,107350.0,1.7746893]
[1751293765155,0.21821803,107360.0,107350.0,1.8691893]